{"text_format":"1","workbook":"xlsx","n_sheets":3,"sheets":["Лист1","Лист2","Лист3"],"not_rendered":{"charts":0,"images":0,"macros":1,"external_links":0,"defined_names":0,"comments":0,"pivot_tables":0},"unopened":[],"bounds":{"document_bytes":16777216,"sheet_cells":100000,"rows_first":2000,"rows_last":500,"rows_between":2000,"halvings":0,"cell_chars":16384,"cell_head_chars":4096},"cells_cut":0,"cells_raw":0,"read":"whole","date_system":"1900"}

{"sheet":"Лист1","index":0,"n_rows":45,"n_cols":21,"rows_kept":45,"cut":false,"hidden":false,"merged":[]}
[null,null,null,null,"intel|video","775|---","iNM|---","ddr|---","IDE|video","SATA|---","pci|---","SB|---","Video|---","LAN|---","USB|---","D-Sub|---","DVI|---","PS/2|---","LPT|---","COM|---","ATX|---"]
[null,null,null,null,"core|---","1155|---","ICH|---",null,null,null,null,null,null,null,null,null,null,null,null,null,"itx|---"]
[null,null,null,null,"Phenom|---","am3|---","H61|---"]
["Артикул","Наличие","Модель","Наименование","series|---","fm|---","67|---"]
[null,null,null,null,null,null,"7025|---"]
[null,null,null,null,null,null,"GA-|---"]
[null,null,null,null,null,null,"amd|---"]
[null,null,null,null,null,null,"atom|---"]
[null,null,null,null,"Процессор","Socket","Чипсет","Тип памяти","IDE","SATA","Слоты расширения","Звук","Встроенный видеоадаптер","Сеть","Наличие USB","Наличие D-Sub","Наличие DVI","Наличие  PS/2 ","Наличие LPT","Наличие COM","Форм-фактор"]
[13346,"+","GA-D525TUD 1.3","GA-D525TUD, CPU, Intel® Atom™ D525 Dual Core (1.8GHz), 1024K L2 cache, iNM10, 2xDDR3 800(max4Gb), 1xPCI, 4xSATA2 RAID, 1xIDE, Video, HDA SB 7.1 Realtek ALC888B, Gb LAN Realtek 8111E, 8xUSB, LPT, COM, 3xAudio, 2xPS/2, Mini-ITX",{"$f":"izvlech($D10,\",\",E$1,E$2,E$3,E$4)","v":"Intel® Atom™ D525 Dual Core (1.8GHz)"},{"$f":"izvlech($D10,\",\",F$1,F$2,F$3,F$4)","v":""},{"$f":"izvlech($D10,\",\",G$1,G$2,G$3,G$4,G$5,G$6,G$7,G$8)","v":"iNM10"},{"$f":"izvlech($D10,\", \",H$1)","v":"2xDDR3 800(max4Gb)"},{"$f":"izvlech($D10,\", \",I$1)","v":"1xIDE"},{"$f":"izvlech($D10,\", \",J$1)","v":"4xSATA2 RAID"},{"$f":"izvlech($D10,\", \",K$1)","v":"1xPCI"},{"$f":"izvlech($D10,\", \",L$1)","v":"HDA SB 7.1 Realtek ALC888B, 8xUSB"},{"$f":"izvlech($D10,\", \",M$1)","v":"Video"},{"$f":"izvlech($D10,\", \",N$1)","v":"Gb LAN Realtek 8111E"},{"$f":"izvlech($D10,\", \",O$1)","v":"8xUSB"},{"$f":"izvlech($D10,\",\",P$1,P$2,P$3,P$4)","v":""},"","2xPS/2","LPT","COM","Mini-ITX"]
[34659,"+","GA-X58A-OC","GA-X58A-OC, s1366, Intel® Core™ i7, Ultra Durable 3, HT 4.8/6.4 GT/s, OC-Touch, OC-VRM, OC-PEG, OC-Cool, X58+ICH10R, 6xDDR3 2200/1333/1066MHz 2/3 channel(max24Gb)XMP, 4xPCI-Ex16 SLI/CrossFire, 2xPCI, 6xSATA2+2xSATA3 RAID, NO IDE/FDD, Gb LAN Realtek 8111E, HDA DTS SB7.1 Realtek ALC889, 4xUSB2+2xUSB3, SPDIF, 2xPS/2, кнопки управления, ATX",{"$f":"izvlech($D11,\",\",E$1,E$2,E$3,E$4)","v":"Intel® Core™ i7"},"",{"$f":"izvlech($D11,\",\",G$1,G$2,G$3,G$4,G$5,G$6,G$7,G$8)","v":"X58+ICH10R"},{"$f":"izvlech($D11,\", \",H$1)","v":"6xDDR3 2200/1333/1066MHz 2/3 channel(max24Gb)XMP"},{"$f":"izvlech($D11,\", \",I$1)","v":"NO IDE/FDD"},{"$f":"izvlech($D11,\", \",J$1)","v":"6xSATA2+2xSATA3 RAID"},{"$f":"izvlech($D11,\", \",K$1)","v":"4xPCI-Ex16 SLI/CrossFire, 2xPCI"},{"$f":"izvlech($D11,\", \",L$1)","v":"HDA DTS SB7.1 Realtek ALC889, 4xUSB2+2xUSB3"},{"$f":"izvlech($D11,\", \",M$1)","v":""},{"$f":"izvlech($D11,\", \",N$1)","v":"Gb LAN Realtek 8111E"},{"$f":"izvlech($D11,\", \",O$1)","v":"4xUSB2+2xUSB3"},"","","2xPS/2","","","ATX"]
[34661,"+","GA-H61N-USB3","GA-H61N-USB3, s1155, Intel® Core™ i7 (SandyBridge), H61, 2xDDR3 Dual 1333/1066MHz(max16Gb), 1xPCI-Ex16, 2xSATA2+1xeSATA2 (3Tb+), NO IDE/FDD, Video Intel CPU, (D-Sub/DVI-D/HDMI), Gb LAN Realtek 8111E, HDA SB7.1 Realtek ALC889, 8xUSB2 + 2xUSB3, NO PS/2, TPM, SPDIF, Auto Green, mini-ITX","Intel® Core™ i7 (SandyBridge)","s1155","GA-H61N-USB3,H61","2xDDR3 Dual 1333/1066MHz(max16Gb)","NO IDE/FDD","2xSATA2+1xeSATA2 (3Tb+)","1xPCI-Ex16","GA-H61N-USB3, HDA SB7.1 Realtek ALC889, 8xUSB2 + 2xUSB3","Video Intel CPU","Gb LAN Realtek 8111E","GA-H61N-USB3, 8xUSB2 + 2xUSB3","(D-Sub/DVI-D/HDMI)","(D-Sub/DVI-D/HDMI)","NO PS/2","","","mini-ITX"]
[34662,"+","GA-H61M-D2H","GA-H61M-D2H, s1155, Intel® Core™ i7 (SandyBridge), H61, 4xDDR3 Dual 1333/1066MHz(max16Gb), 1xPCI-Ex16, 1xPCI-Ex1, 2xPCI, 4xSATA2 (3Tb+), Video Intel CPU, (D-Sub/DVI-D/HDMI), Gb LAN Atheros 8151, HDA SB7.1 Realtek ALC889, 8xUSB2, 2xPS/2, COM, LPT, DualBIOS, AutoGreen, microATX",{"$f":"izvlech($D13,\", \",E$1,E$2,E$3,E$4)","v":"Intel® Core™ i7 (SandyBridge)"},{"$f":"izvlech($D13,\", \",F$1,F$2,F$3,F$4)","v":"s1155"},{"$f":"izvlech($D13,\", \",G$1,G$2,G$3,G$4,G$5,G$6,G$7,G$8)","v":"GA-H61M-D2H, H61"},"4xDDR3 Dual 1333/1066MHz(max16Gb)","","4xSATA2 (3Tb+)","1xPCI-Ex16, 1xPCI-Ex1, 2xPCI","HDA SB7.1 Realtek ALC889, 8xUSB2","Video Intel CPU","Gb LAN Atheros 8151","8xUSB2",{"$f":"izvlech($D13,\", \",P$1)","v":"(D-Sub/DVI-D/HDMI)"},{"$f":"izvlech($D13,\", \",Q$1)","v":"(D-Sub/DVI-D/HDMI)"},{"$f":"izvlech($D13,\", \",R$1)","v":"2xPS/2"},{"$f":"izvlech($D13,\", \",S$1)","v":"LPT"},{"$f":"izvlech($D13,\", \",T$1)","v":"COM"},{"$f":"izvlech($D13,\", \",U$1,U$2)","v":"microATX"}]
[34663,"+","GA-G41MT-D3V","GA-G41MT-D3V, s775, (Core 2 Extreme Quad), G41+ICH7, FSB 1333(OC)/1066MHz, 2xDDR3 Dual 1333(OC)/1066(max8Gb),1xPCI-E x16, 2xPCI-E x1, 1xPCI, 4xSATAII (3TB+), NO IDE/FDD, Video iGMA X4500 (D-Sub, DVI-D), Gb LAN Realtek 8111E, SB 7.1 Realtek ALC 889, 8xUSB, LPT, COM, 2xPS/2, mATX",{"$f":"izvlech($D14,\", \",E$1,E$2,E$3,E$4)","v":"(Core 2 Extreme Quad)"},{"$f":"izvlech($D14,\", \",F$1,F$2,F$3,F$4)","v":"s775"},{"$f":"izvlech($D14,\", \",G$1,G$2,G$3,G$4,G$5,G$6,G$7,G$8)","v":"G41+ICH7"},"2xDDR3 Dual 1333(OC)/1066(max8Gb)","NO IDE/FDD","4xSATAII (3TB+)","1xPCI-E x16, 2xPCI-E x1, 1xPCI","FSB 1333(OC)/1066MHz, SB 7.1 Realtek ALC 889, 8xUSB","Video iGMA X4500 (D-Sub","Gb LAN Realtek 8111E","8xUSB","Video iGMA X4500 (D-Sub","DVI-D)","2xPS/2","LPT","COM",{"$f":"izvlech($D14,\", \",U$1,U$2)","v":"mATX"}]
[34664,"+","GA-P41T-D3P","GA-P41T-D3P, s775, (Core 2 Extreme Quad), G41+ICH7, FSB 1333/1066MHz, 2xDDR3 Dual 1333(OC)/1066/800(max4Gb),1xPCI-E x16, 3xPCI-E x1, 3xPCI, 4xSATAII, IDE, FDD, Gb LAN Realtek, HDA SB 7.1 Realtek, 8xUSB, LPT, COM, SPDIF, 2xPS/2, ATX","(Core 2 Extreme Quad)","s775","G41+ICH7","2xDDR3 Dual 1333(OC)/1066/800(max4Gb)","IDE","4xSATAII","1xPCI-E x16, 3xPCI-E x1, 3xPCI","FSB 1333/1066MHz, HDA SB 7.1 Realtek, 8xUSB","","Gb LAN Realtek","8xUSB","","","2xPS/2","LPT","COM","ATX"]
[34665,"+","GA-A75-D3H","GA-A75-D3H, FM1, (A/E2 series), A75, 4xDual DDR3 2400(OC)/1866/1600(max64Gb), 2xPCI-Ex16, 2xPCI-Ex1, 3xPCI, 5xSATA3+1xeSATA3 RAID(3Tb+), NO IDE/FDD, Video AMD CPU, (D-Sub, DVI-D, HDMI) Dual Graphics, SB7.1 Dolby ALC889, Gb LAN Realtek 8111, 10xUSB2+6xUSB3, 1xPS/2, COM, SPDIF, TPM, ATX","(A/E2 series)","FM1","GA-A75-D3H","4xDual DDR3 2400(OC)/1866/1600(max64Gb)","NO IDE/FDD","5xSATA3+1xeSATA3 RAID(3Tb+)","2xPCI-Ex16, 2xPCI-Ex1, 3xPCI","SB7.1 Dolby ALC889, 10xUSB2+6xUSB3","Video AMD CPU","Gb LAN Realtek 8111","10xUSB2+6xUSB3","(D-Sub","DVI-D","1xPS/2","","COM","ATX"]
[33666,"+","GA-Z68XP-UD4","GA-Z68XP-UD4, s1155, Intel® Core™ i7 (SandyBridge), Z68, 4xDDR3 Dual 2133/1866MHz(max32Gb)XMP, 2xPCI-Ex16, 2xPCI-Ex1, 2xPCI, 4xSATA2+4xSATA3+2xeSATA3 RAID(3TB+), Video INTEL CPU, (HDMI), Gb LAN Realtek 8111E, HDA SB7.1 Realtek ALC889, 14xUSB2+4xUSB3, 2xIEEE1394, 1xPS/2, COM, 2xSPDIF, TPM, ATX","Intel® Core™ i7 (SandyBridge)","s1155","GA-Z68XP-UD4","4xDDR3 Dual 2133/1866MHz(max32Gb)XMP","","4xSATA2+4xSATA3+2xeSATA3 RAID(3TB+)","2xPCI-Ex16, 2xPCI-Ex1, 2xPCI","HDA SB7.1 Realtek ALC889, 14xUSB2+4xUSB3","Video INTEL CPU","Gb LAN Realtek 8111E","14xUSB2+4xUSB3","","","1xPS/2","","COM","ATX"]
[33667,"+","GA-Z68XP-UD3P","GA-Z68XP-UD3P, s1155, Intel® Core™ i7 (SandyBridge), Z68 (B3), 4xDDR3 Dual 2133/1866MHz(max32Gb)XMP, 2xPCI-Ex16, 3xPCI-Ex1, 2xPCI, 4xSATA2+4xSATA3 RAID(3TB+), Video INTEL CPU, (HDMI), Gb LAN Realtek 8111E, HDA SB7.1 Realtek ALC889, 14xUSB2+2xUSB3, 2xIEEE1394, 1xPS/2, COM, SPDIF, TPM, ATX","Intel® Core™ i7 (SandyBridge)","s1155","GA-Z68XP-UD3P","4xDDR3 Dual 2133/1866MHz(max32Gb)XMP","","4xSATA2+4xSATA3 RAID(3TB+)","2xPCI-Ex16, 3xPCI-Ex1, 2xPCI","HDA SB7.1 Realtek ALC889, 14xUSB2+2xUSB3","Video INTEL CPU","Gb LAN Realtek 8111E","14xUSB2+2xUSB3","","","1xPS/2","","COM","ATX"]
[33668,"+","GA-Z68XP-UD3","GA-Z68XP-UD3, s1155, Intel® Core™ i7 (SandyBridge), Z68 (B3), 4xDDR3 Dual 2133/1866MHz(max32Gb)XMP, 2xPCI-Ex16, 3xPCI-Ex1, 2xPCI, 4xSATA2+4xSATA3 RAID(3TB+), Video INTEL CPU, (HDMI), Gb LAN Realtek 8111E, HDA SB7.1 Realtek ALC889, 14xUSB2+4xUSB3, 2xIEE1394, 1xPS/2, COM, SPDIF,TPM, ATX","Intel® Core™ i7 (SandyBridge)","s1155","GA-Z68XP-UD3","4xDDR3 Dual 2133/1866MHz(max32Gb)XMP","","4xSATA2+4xSATA3 RAID(3TB+)","2xPCI-Ex16, 3xPCI-Ex1, 2xPCI","HDA SB7.1 Realtek ALC889, 14xUSB2+4xUSB3","Video INTEL CPU","Gb LAN Realtek 8111E","14xUSB2+4xUSB3","","","1xPS/2","","COM","ATX"]
[33669,"+","GA-Z68MX-UD2H-B3","GA-Z68MX-UD2H-B3, s1155, Intel® Core™ i7 (SandyBridge), Z68(B3), 4xDDR3 Dual XMP 2133/1866MHz(max32Gb), 3xPCI-Ex16, 1xPCI-Ex1, 3xSATA2+4xSATA3+1xeSATA2 RAID (3Tb+), INTEL CPU, Video (D-Sub/DVI-D/HDMI/DP), Gb LAN Realtek 8111E, HDA SB7.1 Realtek ALC889, 14xUSB2+4xUSB3, 1xPS/2, COM, SPDIF, mATX","Intel® Core™ i7 (SandyBridge), INTEL CPU","s1155","GA-Z68MX-UD2H-B3","4xDDR3 Dual XMP 2133/1866MHz(max32Gb)","","3xSATA2+4xSATA3+1xeSATA2 RAID (3Tb+)","3xPCI-Ex16, 1xPCI-Ex1","HDA SB7.1 Realtek ALC889, 14xUSB2+4xUSB3","Video (D-Sub/DVI-D/HDMI/DP)","Gb LAN Realtek 8111E","14xUSB2+4xUSB3","Video (D-Sub/DVI-D/HDMI/DP)","Video (D-Sub/DVI-D/HDMI/DP)","1xPS/2","","COM","mATX"]
[33671,"+","GA-Z68P-DS3","GA-Z68P-DS3, s1155, Intel® Core™ i7 (SandyBridge), Z68, 4xDDR3 Dual 2133/1866MHz(max32Gb)XMP, 2xPCI-Ex16, 2xPCI-Ex1, 2xPCI, 4xSATA2+2xSATA3 RAID(3TB+), INTEL CPU, Video (HDMI), Gb LAN Realtek 8111E, HDA SB7.1 Realtek ALC889, 12xUSB2, 1xPS/2, COM, LPT, SPDIF, TPM, mSATA, ATX","Intel® Core™ i7 (SandyBridge), INTEL CPU","s1155","GA-Z68P-DS3","4xDDR3 Dual 2133/1866MHz(max32Gb)XMP","","4xSATA2+2xSATA3 RAID(3TB+), mSATA","2xPCI-Ex16, 2xPCI-Ex1, 2xPCI","HDA SB7.1 Realtek ALC889, 12xUSB2","Video (HDMI)","Gb LAN Realtek 8111E","12xUSB2","","","1xPS/2","LPT","COM","ATX"]
[33673,"+","GA-P67X-UD3-B3","GA-P67X-UD3-B3, s1155, Intel® Core™ i7 (SandyBridge), P67, 4xDDR3 Dual 2133/1600MHz(max32Gb)XMP, 2xPCI-Ex16, 3xPCI-Ex1, 2xPCI, 4xSATA2+4xSATA3 RAID (3TB+), NO IDE/FDD, Gb LAN Realtek 8111E, HDA SB7.1 Realtek ALC889, 14xUSB2+4xUSB3, 2xIEEE1394, 1xPS/2, SPDIF, ATX","Intel® Core™ i7 (SandyBridge)","s1155","GA-P67X-UD3-B3, P67","4xDDR3 Dual 2133/1600MHz(max32Gb)XMP","NO IDE/FDD","4xSATA2+4xSATA3 RAID (3TB+)","2xPCI-Ex16, 3xPCI-Ex1, 2xPCI","HDA SB7.1 Realtek ALC889, 14xUSB2+4xUSB3","","Gb LAN Realtek 8111E","14xUSB2+4xUSB3","","","1xPS/2","","","ATX"]
[33674,"+","GA-P67-DS3-B3","GA-P67-DS3-B3, s1155, Intel® Core™ i7 (SandyBridge), P67(B3), 4xDDR3 Dual 2133/1600MHz(max32Gb)XMP, 2xPCI-Ex16, 2xPCI-Ex1, 2xPCI, 4xSATA2+2xSATA3 RAID (3TB+), Gb LAN Realtek 8111E, HDA SB7.1 Realtek ALC889, 12xUSB2, 1xPS/2, LPT, COM, TPM, SPDIF, ATX","Intel® Core™ i7 (SandyBridge)","s1155","GA-P67-DS3-B3, P67(B3)","4xDDR3 Dual 2133/1600MHz(max32Gb)XMP","","4xSATA2+2xSATA3 RAID (3TB+)","2xPCI-Ex16, 2xPCI-Ex1, 2xPCI","HDA SB7.1 Realtek ALC889, 12xUSB2","","Gb LAN Realtek 8111E","12xUSB2","","","1xPS/2","LPT","COM","ATX"]
[33676,"+","GA-P61-S3-B3","GA-P61-S3-B3, s1155, Intel® Core™ i7 (SandyBridge), H61 (B3), 2xDDR3 Dual 1333/1066MHz(max16Gb), 1xPCI-Ex16, 2xPCI-Ex1, 3xPCI, 4xSATA2 (3Tb+), Gb LAN AR8151, HDA SB7.1 VT1708, 8xUSB2, 2xPS/2, COM, SPDIF, DualBIOS, AutoGreen, ATX","Intel® Core™ i7 (SandyBridge)","s1155","H61 (B3)","2xDDR3 Dual 1333/1066MHz(max16Gb)","","4xSATA2 (3Tb+)","1xPCI-Ex16, 2xPCI-Ex1, 3xPCI","HDA SB7.1 VT1708, 8xUSB2","","Gb LAN AR8151","8xUSB2","","","2xPS/2","","COM","ATX"]
[33677,"+","GA-H61M-S2V-B3","GA-H61M-S2V-B3, s1155, Intel® Core™ i7 (SandyBridge), H61(B3), 2xDDR3 Dual 1333/1066MHz(max16Gb), 1xPCI-Ex16, 3xPCI-Ex1, 4xSATA2 (3Tb+), Video Intel CPU, (D-Sub/DVI-D), Gb LAN Realtek 8111E, HDA SB7.1 Realtek ALC889, 10xUSB2, 2xPS/2, COM, LPT, microATX","Intel® Core™ i7 (SandyBridge)","s1155","GA-H61M-S2V-B3, H61(B3)","2xDDR3 Dual 1333/1066MHz(max16Gb)","","4xSATA2 (3Tb+)","1xPCI-Ex16, 3xPCI-Ex1","HDA SB7.1 Realtek ALC889, 10xUSB2","Video Intel CPU","Gb LAN Realtek 8111E","10xUSB2","(D-Sub/DVI-D)","(D-Sub/DVI-D)","2xPS/2","LPT","COM","microATX"]
[33679,"+","GA-G41MT-S2PT","GA-G41MT-S2PT 1.1, s775, (Core 2 Extreme Quad), G41+ICH7, FSB 1333/1066MHz, 2xDDR3 Dual 1333(OC)/1066(max8Gb),1xPCI-E x16, 1xPCI-E x1, 2xPCI, 4xSATAII (3TB+), IDE, NO FDD, Video iGMA X4500 (D-Sub), Gb LAN Realtek 8111E, SB 7.1 Realtek, 8xUSB2, LPT, COM, 2xPS/2, mATX","(Core 2 Extreme Quad)","s775","G41+ICH7","2xDDR3 Dual 1333(OC)/1066(max8Gb)","IDE","4xSATAII (3TB+)","1xPCI-E x16, 1xPCI-E x1, 2xPCI","FSB 1333/1066MHz, SB 7.1 Realtek, 8xUSB2","Video iGMA X4500 (D-Sub)","Gb LAN Realtek 8111E","8xUSB2","Video iGMA X4500 (D-Sub)","","2xPS/2","LPT","COM","mATX"]
[13343,"+","GA-G41M-COMBO","s775, (Core 2 Extreme), G41+ICH7, FSB 1333/1066MHz, 2xDDR3 Dual 1333(OC)/1066/800(max8Gb)+2xDDR2 1066(OC)/800(max8Gb),1xPCI-E x16, 1xPCI-E x1, 2xPCI, 4xSATAII, IDE, FDD, Video iGMA4500, Gb LAN Atheros AR8151, SB 7.1 VIA VT1708S DTS, 8xUSB, LPT, COM, SPDIF, mATX","(Core 2 Extreme)","s775","G41+ICH7","2xDDR3 Dual 1333(OC)/1066/800(max8Gb)+2xDDR2 1066(OC)/800(max8Gb)","IDE","4xSATAII","1xPCI-E x16, 1xPCI-E x1, 2xPCI","FSB 1333/1066MHz, SB 7.1 VIA VT1708S DTS, 8xUSB","Video iGMA4500","Gb LAN Atheros AR8151","8xUSB","","","","LPT","COM","mATX"]
[18313,"+","GA-H61M-D2-B3","s1155, Intel® Core™ i7 (SandyBridge), H61 (B3), 2xDDR3 Dual 1333/1066MHz(max16Gb), 1xPCI-Ex16, 3xPCI-Ex1, 4xSATA2 (3Tb+), Video Intel CPU, (D-Sub/DVI-D), Gb LAN Realtek 8111E, HDA SB7.1 Realtek ALC889, 10xUSB2, 2xPS/2, DualBIOS, AutoGreen, microATX","Intel® Core™ i7 (SandyBridge)","s1155","H61 (B3)","2xDDR3 Dual 1333/1066MHz(max16Gb)","","4xSATA2 (3Tb+)","1xPCI-Ex16, 3xPCI-Ex1","HDA SB7.1 Realtek ALC889, 10xUSB2","Video Intel CPU","Gb LAN Realtek 8111E","10xUSB2","(D-Sub/DVI-D)","(D-Sub/DVI-D)","2xPS/2","","","microATX"]
[19130,"+","GA-Z68X-UD3-B3","GA-Z68X-UD3-B3, s1155, Intel® Core™ i7 (SandyBridge), Z68 (B3), 4xDDR3 Dual 2133/1866MHz(max32Gb)XMP, 2xPCI-Ex16, 3xPCI-Ex1, 2xPCI, 4xSATA2+4xSATA3 RAID(3TB+), Gb LAN Realtek 8111E, HDA SB7.1 Realtek ALC889, 14xUSB2+4xUSB3, 2xIEE1394, 1xPS/2, COM, SPDIF, VRD12, HDD SmartResponce, DualBIOS, ATX","Intel® Core™ i7 (SandyBridge)","s1155","GA-Z68X-UD3-B3","4xDDR3 Dual 2133/1866MHz(max32Gb)XMP","","4xSATA2+4xSATA3 RAID(3TB+)","2xPCI-Ex16, 3xPCI-Ex1, 2xPCI","HDA SB7.1 Realtek ALC889, 14xUSB2+4xUSB3","","Gb LAN Realtek 8111E","14xUSB2+4xUSB3","","","1xPS/2","","COM","ATX"]
[19131,"+","GA-Z68A-D3H-B3","GA-Z68A-D3H-B3, s1155, Intel® Core™ i7 (SandyBridge), Z68(B3), 4xDDR3 Dual XMP 2133/1866MHz(max32Gb), 3xPCI-Ex16, 2xPCI-Ex1, 2xPCI, 4xSATA2+2xSATA3 RAID (3Tb+), INTEL CPU, Video (D-Sub/DVI-D/HDMI), Gb LAN Realtek 8111E, HDA SB7.1 Realtek ALC889, 12xUSB2+2xUSB3, 1xPS/2, COM, TPM, SPDIF, ATX","Intel® Core™ i7 (SandyBridge), INTEL CPU","s1155","GA-Z68A-D3H-B3","4xDDR3 Dual XMP 2133/1866MHz(max32Gb)","","4xSATA2+2xSATA3 RAID (3Tb+)","3xPCI-Ex16, 2xPCI-Ex1, 2xPCI","HDA SB7.1 Realtek ALC889, 12xUSB2+2xUSB3","Video (D-Sub/DVI-D/HDMI)","Gb LAN Realtek 8111E","12xUSB2+2xUSB3","Video (D-Sub/DVI-D/HDMI)","Video (D-Sub/DVI-D/HDMI)","1xPS/2","","COM","ATX"]
[19132,"+","GA-Z68MA-D2H-B3","GA-Z68MA-D2H-B3, s1155, Intel® Core™ i7 (SandyBridge), Z68(B3), 4xDDR3 Dual XMP 2133/1866MHz(max32Gb), 2xPCI-Ex16, 1xPCI-Ex1, 1xPCI, 4xSATA2+2xSATA3 RAID (3Tb+), INTEL CPU, Video (D-Sub/DVI-D/HDMI), Gb LAN Realtek 8111E, HDA SB7.1 Realtek ALC889, 12xUSB2+2xUSB3, 1xPS/2, COM, TPM, SPDIF, mATX","Intel® Core™ i7 (SandyBridge), INTEL CPU","s1155","GA-Z68MA-D2H-B3","4xDDR3 Dual XMP 2133/1866MHz(max32Gb)","","4xSATA2+2xSATA3 RAID (3Tb+)","2xPCI-Ex16, 1xPCI-Ex1, 1xPCI","HDA SB7.1 Realtek ALC889, 12xUSB2+2xUSB3","Video (D-Sub/DVI-D/HDMI)","Gb LAN Realtek 8111E","12xUSB2+2xUSB3","Video (D-Sub/DVI-D/HDMI)","Video (D-Sub/DVI-D/HDMI)","1xPS/2","","COM","mATX"]
[18312,"+","GA-P61-USB3-B3","s1155, Intel® Core™ i7 (SandyBridge), H61 (B3), 2xDDR3 Dual 1333/1066MHz(max16Gb), 1xPCI-Ex16, 2xPCI-Ex1, 3xPCI, 4xSATA2 (3Tb+), Gb LAN Realtek RTL8111E, HDA SB7.1 Realtek ALC889, 8xUSB2 + 2xUSB3, 1xPS/2, LPT, COM, SPDIF, DualBIOS, AutoGreen, ATX","Intel® Core™ i7 (SandyBridge)","s1155","H61 (B3)","2xDDR3 Dual 1333/1066MHz(max16Gb)","","4xSATA2 (3Tb+)","1xPCI-Ex16, 2xPCI-Ex1, 3xPCI","HDA SB7.1 Realtek ALC889, 8xUSB2 + 2xUSB3","","Gb LAN Realtek RTL8111E","8xUSB2 + 2xUSB3","","","1xPS/2","LPT","COM","ATX"]
[18325,"+","GA-P67A-D3-B3","s1155, Intel® Core™ i7 (SandyBridge), P67(B3), 4xDDR3 Dual 2133/1600MHz(max32Gb), 2xPCI-Ex16, 3xPCI-Ex1, 2xPCI, 4xSATA2+2xSATA3 RAID, Gb LAN Realtek 8111E, HDA SB7.1 Realtek ALC889, 10xUSB2+2xUSB3, 1xPS/2, LPT, COM, SPDIF, ATX","Intel® Core™ i7 (SandyBridge)","s1155","P67(B3)","4xDDR3 Dual 2133/1600MHz(max32Gb)","","4xSATA2+2xSATA3 RAID","2xPCI-Ex16, 3xPCI-Ex1, 2xPCI","HDA SB7.1 Realtek ALC889, 10xUSB2+2xUSB3","","Gb LAN Realtek 8111E","10xUSB2+2xUSB3","","","1xPS/2","LPT","COM","ATX"]
[5071,"+","GA-X58A-UD3R","s1366, Intel® Core™ i7, Ultra Durable 3, HT 4.8/6.4 GT/s, X58+ICH10R, 6xDDR3 2200/1333/1066MHz 2/3 channel(max24Gb), 4xPCI-Ex16 SLI/CrossFire, 2xPCI-Ex1, 1xPCI, 8xSATA2+2xSATA3+2xeSATA RAID, IDE, FDD, Gb LAN Realtek 8111D, HDA DTS SB7.1 Realtek ALC889, 3xIEEE1394, 10xUSB2+2xUSB3, 2xSPDIF, COM, ATX","Intel® Core™ i7","","X58+ICH10R","6xDDR3 2200/1333/1066MHz 2/3 channel(max24Gb)","IDE","8xSATA2+2xSATA3+2xeSATA RAID","4xPCI-Ex16 SLI/CrossFire, 2xPCI-Ex1, 1xPCI","HDA DTS SB7.1 Realtek ALC889, 10xUSB2+2xUSB3","","Gb LAN Realtek 8111D","10xUSB2+2xUSB3","","","","","COM","ATX"]
[12100,"+","GA-X58-USB3","s1366, Intel® Core™ i7, Ultra Durable 3, HT 4.8/6.4 GT/s, X58+ICH10R, 6xDDR3 2200/1333/1066MHz 2/3 channel(max24Gb), 3xPCI-Ex16 SLI/CrossFire, 3xPCI-Ex1, 1xPCI, 6xSATA3 RAID, IDE, Gb LAN Realtek 8111E, HDA DTS SB 7.1 Realtek ALC892, 12xUSB2+2xUSB3, 2xSPDIF, 2xPS/2, ATX","Intel® Core™ i7","","X58+ICH10R","6xDDR3 2200/1333/1066MHz 2/3 channel(max24Gb)","IDE","6xSATA3 RAID","3xPCI-Ex16 SLI/CrossFire, 3xPCI-Ex1, 1xPCI","HDA DTS SB 7.1 Realtek ALC892, 12xUSB2+2xUSB3","","Gb LAN Realtek 8111E","12xUSB2+2xUSB3","","","2xPS/2","","","ATX"]
[33680,"+","GA-A75M-D2H","GA-A75M-D2H, FM1, (A/E2 series), A75, 2xDual DDR3 2400(OC)/1866/1600(max32Gb), 2xPCI-Ex16, 1xPCI-Ex1, 1xPCI, 6xSATA3 RAID(3Tb+), NO IDE/FDD, Video AMD CPU, (D-Sub, DVI-D, HDMI) Dual Graphics, SB7.1 Dolby ALC889, Gb LAN Realtek 8111, 6xUSB2+4xUSB3, 1xPS/2, COM, SPDIF, TPM, mATX","(A/E2 series)","FM1","GA-A75M-D2H","2xDual DDR3 2400(OC)/1866/1600(max32Gb)","NO IDE/FDD","6xSATA3 RAID(3Tb+)","2xPCI-Ex16, 1xPCI-Ex1, 1xPCI","SB7.1 Dolby ALC889, 6xUSB2+4xUSB3","Video AMD CPU","Gb LAN Realtek 8111","6xUSB2+4xUSB3","(D-Sub","DVI-D","1xPS/2","","COM","mATX"]
[33683,"+","GA-990XA-UD3","GA-990XA-UD3, sAM3+, (FX/Phenom II), AMD990FX+SB950, HT 5200, 4xDual DDR3 2000(OC)/1866(max32Gb), 3xPCI-Ex16, 2xPCI-Ex1, 2xPCI, 6xSATA3 RAID, NO IDE/FDD, SB7.1 HDA ALC889, Gb LAN Realtek 8111E, 14xUSB2+4xUSB3, 2xIEEE1394, 1xPS/2, COM, SPDIF, TPM, ATX","(FX/Phenom II)","sAM3+","GA-990XA-UD3","4xDual DDR3 2000(OC)/1866(max32Gb)","NO IDE/FDD","6xSATA3 RAID","3xPCI-Ex16, 2xPCI-Ex1, 2xPCI","AMD990FX+SB950, SB7.1 HDA ALC889, 14xUSB2+4xUSB3","","Gb LAN Realtek 8111E","14xUSB2+4xUSB3","","","1xPS/2","","COM","ATX"]
[33684,"+","GA-880GMA-USB3","GA-880GMA-USB3, sAM3+, (Phenom II ), AMD880G+SB850, HT 5200, 4xDual DDR3 1866(OC)/1333(max16Gb), 1xPCI-Ex16, 2xPCI-E x1, 1xPCI, 6xSATA2 RAID, NO IDE/FDD, Video Radeon HD4250 (D-Sub/DVI-D/HDMI), SB 7.1 Realtek ALC889, Gb LAN Realtek 8111E, 10xUSB2+2xUSB3, 1xPS/2, SPDIF, mATX","(Phenom II )","sAM3+","GA-880GMA-USB3","4xDual DDR3 1866(OC)/1333(max16Gb)","NO IDE/FDD","6xSATA2 RAID","1xPCI-Ex16, 2xPCI-E x1, 1xPCI","GA-880GMA-USB3, AMD880G+SB850, SB 7.1 Realtek ALC889, 10xUSB2+2xUSB3","Video Radeon HD4250 (D-Sub/DVI-D/HDMI)","Gb LAN Realtek 8111E","GA-880GMA-USB3, 10xUSB2+2xUSB3","Video Radeon HD4250 (D-Sub/DVI-D/HDMI)","Video Radeon HD4250 (D-Sub/DVI-D/HDMI)","1xPS/2","","","mATX"]
[14155,"+","GA-M68MT-S2","sAM3, (Phenom II), GeForce 7025+630a, HT 2000 MT/s, 2xDual DDR3 1333+/1066(max8Gb), 1xPCI-Ex16, 2xPCI-E x1, 1xPCI, 4xSATAII RAID, NO IDE/FDD, Video CineFX 3.0 (D-Sub), HDA SB7.1 Realtek ALC888B, Gb LAN Realtek 8211C, 10xUSB, COM, LPT, mATX","(Phenom II)","sAM3","GeForce 7025+630a","2xDual DDR3 1333+/1066(max8Gb)","NO IDE/FDD","4xSATAII RAID","1xPCI-Ex16, 2xPCI-E x1, 1xPCI","HDA SB7.1 Realtek ALC888B, 10xUSB","Video CineFX 3.0 (D-Sub)","Gb LAN Realtek 8211C","10xUSB","Video CineFX 3.0 (D-Sub)","","","LPT","COM","mATX"]
[12111,"+","GA-880GM-D2H","sAM3, (Phenom II ), AMD880G+SB710, HT 5200, 2xDual DDR3 1666(OC)/1333(max8Gb), 1xPCI-Ex16, 1xPCI-E x1, 2xPCI, 4xSATA2 RAID, Video AMD880G (D-Sub/DVI-D/HDMI), SB 7.1 Realtek ALC888, Gb LAN Realtek 8111D, 12xUSB2, 1xPS/2, SPDIF, UD3, mATX","(Phenom II )","sAM3","AMD880G+SB710, Video AMD880G (D-Sub/DVI-D/HDMI)","2xDual DDR3 1666(OC)/1333(max8Gb)","","4xSATA2 RAID","1xPCI-Ex16, 1xPCI-E x1, 2xPCI","AMD880G+SB710, SB 7.1 Realtek ALC888, 12xUSB2","Video AMD880G (D-Sub/DVI-D/HDMI)","Gb LAN Realtek 8111D","12xUSB2","Video AMD880G (D-Sub/DVI-D/HDMI)","Video AMD880G (D-Sub/DVI-D/HDMI)","1xPS/2","","","mATX"]
[19142,"+","GA-990FXA-UD5","GA-990FXA-UD5, sAM3+/sAM3, (FX/Phenom II), AMD990FX+SB950, HT 5200, 4xDual DDR3 2000(OC)/1866(max32Gb), 5xPCI-Ex16, 1xPCI-Ex1, 1xPCI, 8xSATA3+2xeSATA3 RAID, NO IDE/FDD, SB7.1 HDA ALC889, Gb LAN Realtek 8111E, 14xUSB2+4xUSB3, 2xIEEE1394, 1xPS/2, COM, 2xSPDIF, TPM, ATX","(FX/Phenom II)","sAM3+/sAM3","GA-990FXA-UD5","4xDual DDR3 2000(OC)/1866(max32Gb)","NO IDE/FDD","8xSATA3+2xeSATA3 RAID","5xPCI-Ex16, 1xPCI-Ex1, 1xPCI","AMD990FX+SB950, SB7.1 HDA ALC889, 14xUSB2+4xUSB3","","Gb LAN Realtek 8111E","14xUSB2+4xUSB3","","","1xPS/2","","COM","ATX"]
[5086,"+","GA-790FXTA-UD5","sAM3, (AMD Phenom™II X4),AMD790FX+SB750, HT 5200 MT/s, 4xDual DDR3 1866(OC)/1333/1066(max16Gb), 3xPCI-Ex16, 1xPCI-Ex1, 3xPCI, 8xSATA2 RAID+2xeSATA, IDE, FDD, HDA SB 7.1 Realtek ALC889A, 2xGb LAN Realtek 8111DL, 3xIEEE1394, 10xUSB2.0+2xUSB3.0, 2xSPDIF, UD3, ATX","(AMD Phenom™II X4)","sAM3","(AMD Phenom™II X4), AMD790FX+SB750","4xDual DDR3 1866(OC)/1333/1066(max16Gb)","IDE","8xSATA2 RAID+2xeSATA","3xPCI-Ex16, 1xPCI-Ex1, 3xPCI","AMD790FX+SB750, HDA SB 7.1 Realtek ALC889A, 10xUSB2.0+2xUSB3.0","","2xGb LAN Realtek 8111DL","10xUSB2.0+2xUSB3.0","","","","","","ATX"]
[11351,"+","GA-890FXA-UD7","sAM3, (Phenom II X6), Silent-Pipe2, AMD890FX+SB850, HT 5200, 4xDual DDR3 1866(OC)/1333(max16Gb),6xPCI-Ex16, 1xPCI, 6xSATA3+2xSATA2 +2xeSATA2 RAID, SB7.1 HDA ALC889, 2xGb LAN Realtek 8111D Smart, 14xUSB2+2xUSB3, 3xIEEE1394, 1xPS/2, POST LED, buttons (power, reset), XL-ATX","(Phenom II X6)","sAM3","AMD890FX+SB850","4xDual DDR3 1866(OC)/1333(max16Gb)","","6xSATA3+2xSATA2 +2xeSATA2 RAID","6xPCI-Ex16, 1xPCI","AMD890FX+SB850, SB7.1 HDA ALC889, 14xUSB2+2xUSB3","","2xGb LAN Realtek 8111D Smart","14xUSB2+2xUSB3","","","1xPS/2","","","XL-ATX"]
[13348,"+","GA-890FXA-UD7 2.1","sAM3, (Phenom II X6), Silent-Pipe2, AMD890FX+SB850, HT 5200, 4xDual DDR3 2000(OC)/1333(max16Gb),6xPCI-Ex16, 1xPCI, 6xSATA3+2xSATA2 +2xeSATA2 RAID, IDE, FDD, SB7.1 HDA ALC889, 2xGb LAN Realtek 8111D Smart, 14xUSB2+2xUSB3, 3xIEEE1394, 1xPS/2, COM, LPT, 2xSPDIF, POST LED, buttons (power, reset), XL-ATX","(Phenom II X6)","sAM3","AMD890FX+SB850","4xDual DDR3 2000(OC)/1333(max16Gb)","IDE","6xSATA3+2xSATA2 +2xeSATA2 RAID","6xPCI-Ex16, 1xPCI","AMD890FX+SB850, SB7.1 HDA ALC889, 14xUSB2+2xUSB3","","2xGb LAN Realtek 8111D Smart","14xUSB2+2xUSB3","","","1xPS/2","LPT","COM","XL-ATX"]
[35201,"+","AT4NM10T-I","ASUS AT4NM10T-I (NM10), Intel Atom D425, 2xDDR3 SO-DIMM, 4xSATA II, video Intel GMA 3150, LAN, sound 6ch(VT1705S), D-Sub, 6xUSB2.0, COM, 1xPCI-E x4, Mini-ITX","Intel Atom D425","","Intel Atom D425","2xDDR3 SO-DIMM","","4xSATA II","1xPCI-E x4","6xUSB2.0","video Intel GMA 3150","LAN","6xUSB2.0","D-Sub","","","","COM","Mini-ITX"]

{"sheet":"Лист2","index":1,"n_rows":0,"n_cols":0,"rows_kept":0,"cut":false,"hidden":false,"merged":[]}

{"sheet":"Лист3","index":2,"n_rows":0,"n_cols":0,"rows_kept":0,"cut":false,"hidden":false,"merged":[]}